Cogmind - Beta 15 @@@ ROGUE MODE // 2025.08.16 @ 09:32:29 Player: StaticNoob Result: Destroyed by Striker with Compact Linear Accelerator Performance ------------- Evolutions (8) 4000 Regions Visited (22) 4400 Robots Destroyed (153) 765 Value Destroyed (8607) 8607 Prototype IDs (117) 2340 Alien Tech Used (3) 600 Bonus (5569) 5569 TOTAL SCORE: 26281 Bonus ------- High Alert Combat Kills 2912 Follower Combat Kills 48 Registered with UFD 300 Met Optimus in HQ 500 Met Zhirov 300 Met Warlord at Base 500 MAIN.C Attacked Warlord 500 Warlord Defense Kills 462 Met Optimus at Protoforge 1000 Friendly Fire -953 Cogmind --------- Core Integrity 0/1450 Matter 291/300 Energy 425/425 System Corruption 25% Temperature Cool (0) Movement Rolling (70) Location -2/Protoforge Parts ------- > --- POWER (2) -------- Overtuned Antimatter Reactor (fused) > --- PROPULSION (8) --- Overtuned Huge Scrapsphere Overtuned Huge Scrapsphere (fused) Overtuned Huge Scrapsphere Overtuned Huge Scrapsphere > --- UTILITY (11) ----- 0bPrime Scrap Suit Experimental Optical Array Experimental Targeting Computer Improved Target Analyzer Experimental Core Analyzer Advanced Kinecellerator (fused) Makeshift Core Shielding Makeshift Medium Armor Plating > --- WEAPON (2) ------- Overtuned Coil Gun Helical Railgun (fused) > --- INVENTORY (5) ---- 0bPrime Scrap Suit Quantum Capacitor Peak State ------------ > --- POWER ------------ Light Antimatter Reactor Graviton Reactor > --- PROPULSION ------- Overtuned Huge Scrapsphere Overtuned Huge Scrapsphere Cooled Nuclear Pulse Thruster Cooled Nuclear Pulse Thruster Electron Diverter Electron Diverter > --- UTILITY ---------- Scrap Suit 2N-1CE's Frost Array Small Storage Unit Advanced Sensor Array Advanced Signal Interpreter Experimental Core Analyzer Experimental Kinecellerator Quantum Capacitor Advanced Transmission Jammer > --- WEAPON ----------- Concept XC Strikerail Concept XC Strikerail > --- INVENTORY -------- Transdimensional Reconstructor Terrabomb Compact HERF Cannon Null Cannon Gamma Bomb Array Core Stripper Vortex Lance [Rating: 177] Favorites ----------- Power Overtuned Antimatter Reactor Engine Subdweller Power Source Power Core Micro Fission Core Reactor Overtuned Antimatter Reactor Propulsion Overtuned Huge Scrapsphere Treads Light Treads Leg Enhanced Biometal Leg Wheel Overtuned Huge Scrapsphere Flight Unit Electron Diverter Utility Improved Target Analyzer Device 0bPrime Scrap Suit Storage Large Storage Unit Processor Improved Target Analyzer Hackware Improved Hacking Suite Protection Makeshift Core Shielding Weapon Assault Rifle Energy Gun Lightning Gun Energy Cannon Matter Neutralizer Ballistic Gun Assault Rifle Ballistic Cannon Light Cannon Launcher Heavy Shock Bomb Launcher Special Weapon Improved Remote Datajack Slashing Weapon Power Sword Piercing Weapon Vortex Lance Build | -11 -10 -10 -7 -5 -5 -5 -5 -5 -5 -4 -4 -4 -4 -4 -4 -4 -3 -3 -3 -2 -2 -2 ------- Run | Yrd Mat Sub Scr Fac Was Fac Upp Upp War Pro Fac Was Fac Upp Upp Zhi Pro Res Tes Res Qua Frg Slots Evolved 16 | . . . . 10 . . . . . . 2 . . . . . . 2 . 2 . . Power 1 | . . . . 1 . . . . . . . . . . . . . . . . . . Propulsion 6 | . . . . 3 . . . . . . 1 . . . . . . 1 . 1 . . Utility 9 | . . . . 6 . . . . . . 1 . . . . . . 1 . 1 . . Weapon . | . . . . . . . . . . . . . . . . . . . . . . . Parts Attached 177 | 7 2 7 3 35 . 14 4 1 3 . 9 3 6 . . . . 11 . 6 5 61 Power 28 | 1 . 2 . 4 . 2 1 1 . . 2 1 . . . . . 3 . 1 2 8 Engine 8 | 1 . 2 . 2 . . . . . . 1 . . . . . . 1 . . 1 . Core 6 | . . . . 2 . 2 1 . . . . . . . . . . . . . . 1 Reactor 14 | . . . . . . . . 1 . . 1 1 . . . . . 2 . 1 1 7 Propulsion 50 | 2 . 2 . 10 . 2 1 . 2 . 2 . 2 . . . . 3 . 2 1 21 Treads 23 | 2 . 2 . 5 . . . . . . . . . . . . . . . . . 14 Leg 1 | . . . . . . . . . . . . . . . . . . . . . . 1 Wheel 8 | . . . . 2 . . . . . . . . . . . . . . . . . 6 Hover . | . . . . . . . . . . . . . . . . . . . . . . . Flight 18 | . . . . 3 . 2 1 . 2 . 2 . 2 . . . . 3 . 2 1 . Utility 72 | 2 1 1 1 15 . 9 1 . . . 5 1 4 . . . . 3 . 2 1 26 Device 34 | 1 . 1 1 9 . 4 . . . . 1 . 3 . . . . 1 . 2 1 10 Storage 7 | 1 1 . . 1 . . . . . . 1 . . . . . . . . . . 3 Processor 17 | . . . . 4 . 2 . . . . 1 . 1 . . . . 1 . . . 8 Hackware 7 | . . . . . . 3 1 . . . 2 . . . . . . 1 . . . . Protection 7 | . . . . 1 . . . . . . . 1 . . . . . . . . . 5 Artifact . | . . . . . . . . . . . . . . . . . . . . . . . Weapon 27 | 2 1 2 2 6 . 1 1 . 1 . . 1 . . . . . 2 . 1 1 6 Energy Gun 1 | . . . . 1 . . . . . . . . . . . . . . . . . . Energy Cannon 6 | . . . . 1 . 1 . . . . . 1 . . . . . 1 . 1 1 . Ballistic Gun 10 | 2 1 2 . . . . . . . . . . . . . . . . . . . 5 Ballistic Cannon 4 | . . . 1 2 . . . . . . . . . . . . . . . . . 1 Launcher 2 | . . . . 1 . . 1 . . . . . . . . . . . . . . . Special Weapon 2 | . . . 1 . . . . . . . . . . . . . . 1 . . . . Impact Weapon . | . . . . . . . . . . . . . . . . . . . . . . . Slashing Weapon 1 | . . . . 1 . . . . . . . . . . . . . . . . . . Piercing Weapon 1 | . . . . . . . . . 1 . . . . . . . . . . . . . Special Melee Weapon . | . . . . . . . . . . . . . . . . . . . . . . . Unidentified Prototypes 10 | . . . . 1 . . . . . 1 . . . . . 1 . . . . . 7 Parts Lost 67 | . . 6 . 8 . 4 1 2 1 2 3 . . . . . 1 . 1 6 . 32 Power 14 | . . 1 . 1 . . . 2 . . 1 . . . . . 1 . 1 1 . 6 Propulsion 26 | . . 2 . 4 . 2 1 . 1 1 . . . . . . . . . 2 . 13 Utility 19 | . . 1 . 3 . 1 . . . . 1 . . . . . . . . 2 . 11 Weapon 8 | . . 2 . . . 1 . . . 1 1 . . . . . . . . 1 . 2 Highest Loss Streak 6 | . . 4 . 4 . 3 1 1 2 1 2 . . . . . 1 . 1 5 . 6 To Critical Strikes 2 | . . 1 . . . . . . . . . . . . . . . . . . . 1 Average Backups 7 | 1 10 13 13 11 8 5 4 4 5 4 5 7 8 8 8 7 8 7 7 6 6 5 Power . | . 1 1 1 . . . . . . . . . . . . . . . . . . . Propulsion 1 | . 1 4 3 1 . . . . . . 1 2 2 2 2 2 2 1 . . . . Utility 2 | . 3 3 4 3 3 1 2 2 1 2 1 3 4 4 4 3 3 2 3 2 . 2 Weapon 2 | . 3 4 3 4 4 2 1 1 2 1 1 1 1 1 1 1 1 1 2 3 3 2 Tool/Special . | . . . . . . . . . . . . . . . . . . . . . . . Unused Backups 67 | . . 4 28 14 . 4 . . . 1 . . 2 . . 1 . . 1 . . 12 Power 8 | . . . 5 1 . . . . . . . . . . . . . . . . . 2 Propulsion 16 | . . 1 9 3 . . . . . . . . 1 . . . . . . . . 2 Utility 17 | . . 1 6 4 . 1 . . . . . . 1 . . 1 . . 1 . . 2 Weapon 23 | . . 2 8 5 . 2 . . . 1 . . . . . . . . . . . 5 Tool/Special 3 | . . . . 1 . 1 . . . . . . . . . . . . . . . 1 Average Slot Usage (%) 83 | . 100 97 98 82 88 91 82 80 77 93 86 83 93 94 94 89 89 95 100 96 94 71 Engine 5 | . 14 14 14 5 5 . . . 2 5 3 4 5 5 5 5 . 2 . . 3 . Core 1 | . . . . 2 5 10 11 6 5 5 1 . . . . . . . . . . . Reactor 2 | . . . . . . . . 1 . . 4 5 5 5 5 5 5 5 9 7 4 5 Treads 10 | . 28 26 28 13 . . . . . . . . . . . . . . . . . 4 Wheel 5 | . . . . 1 . . . . . . . . . . . . . . . . . 13 Flight 6 | . . . . 5 17 21 17 17 14 22 20 21 25 26 26 26 26 28 33 33 32 1 Device 13 | . 14 14 12 21 23 22 23 23 23 23 13 5 12 15 15 12 12 14 14 17 23 11 Storage 6 | . 14 14 14 5 5 1 . . . . 1 5 5 5 5 5 5 4 4 4 4 3 Processor 9 | . . . . 8 17 14 11 11 11 11 10 10 10 10 10 10 10 10 14 13 13 15 Hackware 2 | . . . . . . 5 11 11 11 11 20 21 15 15 15 15 15 16 14 10 4 . Protection 3 | . . . . 2 . . . . . . . 3 1 . . 2 2 . . . . 6 Energy Cannon 1 | . . . . 2 . . . . . 4 4 2 5 5 5 . 5 2 . . 3 . Ballistic Gun 8 | . 28 27 20 1 . . . . . . . . . . . . . . . . . 4 Ballistic Cannon 2 | . . . 7 3 . . . . . . . . . . . . . . . . . . Slashing Weapon 1 | . . . . 1 5 5 5 5 5 5 5 5 5 5 5 5 5 4 4 4 4 . Peak Build Rating 177 | 7 8 13 18 74 72 88 79 77 90 88 113 118 120 120 121 121 120 145 146 171 164 177 Average Rating 93 | 5 7 10 13 57 72 77 72 70 67 87 108 109 119 119 120 113 117 135 145 157 153 146 On Entrance 85 | . 7 8 13 16 72 72 72 71 66 88 84 104 118 120 120 121 120 116 145 138 128 159 Naked Turns . | . . . . . . . . . . . . . . . . . . . . . . . Heaviest Build 107 | 14 30 30 31 66 27 28 20 24 24 24 35 43 43 40 40 43 43 47 45 48 46 107 Greatest Support 139 | 40 40 40 40 139 30 36 35 28 38 38 53 44 52 43 43 43 43 50 50 57 64 100 Greatest Overweight (x) 20 | 3 . 1 . 3 . 1 . . 1 1 . . 1 . . . . . . . . 20 Average Overweight (x) . | . . . . . . . . . . . . . . . . . . . . . . . Largest Inventory Capacity 25 | 8 15 15 15 15 8 8 5 5 5 5 8 8 8 8 8 8 8 8 8 8 8 25 Average Capacity 15 | 7 13 15 15 12 8 5 5 5 5 5 6 8 8 8 8 8 8 8 8 8 8 19 Most Carried 24 | 4 15 15 15 15 8 8 5 5 5 5 7 8 8 8 8 8 8 8 8 8 8 24 Average Carried 9 | 1 10 13 13 11 8 5 4 4 4 4 5 7 7 8 7 7 8 7 7 7 7 7 Final Capacity 15 | 8 15 15 15 8 8 5 5 5 5 5 8 8 8 8 8 8 8 8 8 8 8 5 Final Carried 15 | 4 15 15 11 8 8 5 5 5 5 5 7 8 8 8 8 8 8 8 8 8 8 4 Class Distribution -------------------- 41% | Scavenger-Scrapper 33% | Mutant 12% | Hacker-Sprinter 3% | Hacker-Ninja 3% | Ninja Dominant Class ---------------- Mutant | -10/Materials Mutant | -10/Subcaves Mutant | -7/Scraptown Mutant | -5/Factory Scout | -5/Waste Ninja | -5/Factory Hacker-Sprinter | -5/Upper Caves Hacker-Mutant | -5/Upper Caves Hacker-Mutant | -5/Warlord Hacker-Sprinter | -4/Proximity Caves Hacker-Sprinter | -4/Factory Hacker-Sprinter | -4/Waste Hacker-Sprinter | -4/Factory Hacker-Sprinter | -4/Upper Caves Hacker-Sprinter | -4/Upper Caves Hacker-Sprinter | -4/Zhirov Hacker-Sprinter | -3/Proximity Caves Hacker-Ninja | -3/Research Hacker-Ninja | -3/Testing Hacker-Ninja | -2/Research Ninja | -2/Quarantine Scavenger-Scrapper | -2/Protoforge Resources | -11 -10 -10 -7 -5 -5 -5 -5 -5 -5 -4 -4 -4 -4 -4 -4 -4 -3 -3 -3 -2 -2 -2 ----------- Run | Yrd Mat Sub Scr Fac Was Fac Upp Upp War Pro Fac Was Fac Upp Upp Zhi Pro Res Tes Res Qua Frg Matter Collected 7014 | 282 476 243 20 748 . 80 165 78 86 19 . 150 30 70 . 30 42 107 80 98 19 4191 Remotely 226 | . . . . 226 . . . . . . . . . . . . . . . . . . Salvage Created 8469 | 114 506 145 . 1210 . 34 173 171 287 12 . . 101 . . 332 215 230 . . 19 4920 Parts 374 | 11 36 10 . 46 . 1 11 8 8 1 . . 4 . . 3 5 9 . . 2 219 Haulers Intercepted 6 | . 2 . . 2 . . . . . . . . 1 . . . . 1 . . . . Recyclers Shooed 2 | 1 . . . 1 . . . . . . . . . . . . . . . . . . Parts Field Recycled . | . . . . . . . . . . . . . . . . . . . . . . . Retrieved Matter . | . . . . . . . . . . . . . . . . . . . . . . . Parts Self-Destructed 15 | . . 5 . . . . 4 2 . . . . . . 1 3 . . . . . . Prevented 2 | . . . . . . . . 1 . 1 . . . . . . . . . . . . Kills | -11 -10 -10 -7 -5 -5 -5 -5 -5 -5 -4 -4 -4 -4 -4 -4 -4 -3 -3 -3 -2 -2 -2 ------- Run | Yrd Mat Sub Scr Fac Was Fac Upp Upp War Pro Fac Was Fac Upp Upp Zhi Pro Res Tes Res Qua Frg Combat Hostiles Destroyed 125 | . 13 3 . 17 . . 5 5 4 2 . . . . . . . . . . . 76 Melee 1 | . . . . . . . . 1 . . . . . . . . . . . . . . Guns 47 | . 13 3 . . . . . . . . . . . . . . . . . . . 31 Cannons 48 | . . . . 10 . . . . . . . . . . . . . . . . . 38 AOE 16 | . . . . 5 . . 5 4 . 2 . . . . . . . . . . . . Classes Destroyed 24 | 2 4 1 . 4 . . . . 3 1 . . . . . . 1 . . . . 8 Worker 3 | . . . . 2 . . . . . . . . . . . . . . . . 1 . Builder 4 | . . . . 4 . . . . . . . . . . . . . . . . . . Tunneler 2 | 2 . . . . . . . . . . . . . . . . . . . . . . Hauler 7 | . 2 . . 2 . . . . . . . . 1 . . . . 1 . . . 1 Recycler 4 | 1 . . . 2 . . . . . . . . . . . . . 1 . . . . Mechanic 1 | . . . . . . . . . . . . . . . . . . . . . . 1 Drone 6 | . . . . . . . . . . 2 . . . . . . . . . . . 4 Watcher 6 | . 2 . . 2 . 1 . . . . . . . . . . . . . . . 1 Swarmer 23 | . 6 . . . . . 5 5 . . . . . . . . . . . . . 7 Saboteur 2 | . . . . . . . . . . . . . . . . . . . . . . 2 Grunt 27 | . 7 . . 13 . . . . . . . . . . . . . . . . . 7 Brawler 3 | . . . . . . . . . 2 . . . . . . . . . . . . 1 Duelist 4 | . . . . . . . . . 1 . . . . . . . . . . . . 3 Protector 5 | . . . . . . . . . 1 . . . . . . . . . . . . 4 Sentry 1 | . . . . 1 . . . . . . . . . . . . . . . . . . Specialist 1 | . . . . . . . . . . . . . . . . . . . . . . 1 Hunter 16 | . . . . . . . . . . . . . . . . . . . . . . 16 Programmer 13 | . . . . 3 . . . . . . . . . . . . . . . . . 10 Hotshot 3 | . . . . . . . . . . . . . . . . . . . . . . 3 Striker 9 | . . . . . . . . . . . . . . . . . . . . . . 9 Executioner 8 | . . . . . . . . . . . . . . . . . . . . . . 8 Subdweller 3 | . . 3 . . . . . . . . . . . . . . . . . . . . Scrapoid 2 | . . . . . . . . . . . . . . . . . . . . . . 2 Scraphulk 1 | . . . . . . . . . . . . . . . . . . . . . . 1 Decomposer 2 | . . . . . . . 2 . . . . . . . . . . . . . . . Packrat 3 | . . . . . . . . . . . . . . . . . 3 . . . . . Samaritan 1 | . . . . . . . . . . . . . . . . . 1 . . . . . Best Kill Streak 16 | 3 7 2 . 16 . 1 5 4 4 5 . . 1 . . . . 1 . . 1 7 Combat Bots Only 7 | . 6 2 . 7 . . 5 4 4 5 . . . . . . . . . . . 7 Max Kills in Single Turn 4 | 2 2 1 . 4 . 1 4 2 2 1 . . 1 . . . 1 1 . . 1 2 Gunslinging 1 | . . . . . . . . . . . . . . . . . . . . . . 1 Exploded 4 | . . . . 3 . . 4 2 . 1 . . . . . . . . . . . . Melee 1 | . . . . . . . . 1 . . . . . . . . . . . . . . Uniques/NPCs Destroyed . | . . . . . . . . . . . . . . . . . . . . . . . Combat | -11 -10 -10 -7 -5 -5 -5 -5 -5 -5 -4 -4 -4 -4 -4 -4 -4 -3 -3 -3 -2 -2 -2 -------- Run | Yrd Mat Sub Scr Fac Was Fac Upp Upp War Pro Fac Was Fac Upp Upp Zhi Pro Res Tes Res Qua Frg Hostile Shots Fired 932 | . 47 49 . 140 . 42 7 32 . 14 54 . 3 2 . . 29 2 16 38 6 451 Missed 346 | . 9 18 . 38 . 24 4 11 . 4 25 . 1 1 . . 18 1 9 13 2 168 Hits 586 | . 38 31 . 102 . 18 3 21 . 10 29 . 2 1 . . 11 1 7 25 4 283 Melee 5 | . . . . . . . . . . . . . . . . . . . . . . 5 Projectile 581 | . 38 31 . 102 . 18 3 21 . 10 29 . 2 1 . . 11 1 7 25 4 278 AOE 1 | . . . . . . . . . . . . . . . . . . . . . . 1 Critical Strikes 28 | . . 2 . 4 . . . . . 1 2 . . . . . . . . 3 . 16 Actively Blocked 2 | . . . . . . . . . . . . . . . . . . . . . . 2 Part Disruptions 3 | . . . . 1 . . . . . . . . . . . . . . . 1 . 1 Damage Taken 14229 | . 378 655 . 2104 . 287 152 347 77 173 515 . 38 12 . . 105 20 145 604 44 8573 Core 2596 | . 49 131 . 282 . 80 102 142 65 47 166 . . . . . 62 . 20 74 22 1354 Absorbed by Shields 77 | . . . . . . . . . . . . . . . . . . . . . . 77 Redirected to Shielding 24 | . . . . . . . . . . . . . . . . . . . . . . 24 Ignored by Resistances 254 | . . . . 254 . . . . . . . . . . . . . . . . . . Regen/Repaired (Parts) 339 | . . . . . . . . . 1 . . . . . . . . . . . . 338 Core Remaining (%) 66 | 100 . . 28 . . . . . . 28 . . . . . . 80 . 98 . . . Volleys Fired 646 | 3 43 30 1 58 . 4 2 4 3 10 39 . 10 18 . . 23 13 . 3 5 377 Largest 2 | 2 2 2 1 2 . 1 1 1 1 1 1 . 1 1 . . 1 1 . 1 1 2 Hottest 134 | 40 40 45 . 134 . 90 46 46 46 90 90 . 105 105 . . 105 105 . 130 130 130 Shots Fired 988 | 6 86 61 1 94 . 4 2 4 3 10 39 . 10 18 . . 23 13 . 3 5 606 Gun 515 | 6 86 61 . 10 . 3 . . . . . . . . . . . . . . . 349 Cannon 458 | . . . . 81 . 1 . . . 8 39 . 10 18 . . 23 13 . 3 5 257 Launcher 14 | . . . . 3 . . 2 4 3 2 . . . . . . . . . . . . Special 1 | . . . 1 . . . . . . . . . . . . . . . . . . . Kinetic 695 | 6 86 61 . 58 . . . . . . . . . . . . . . . . . 484 Thermal 245 | . . . . 24 . 1 . . . 8 39 . 10 18 . . 23 13 . 3 5 101 Explosive 3 | . . . . 3 . . . . . . . . . . . . . . . . . . Electromagnetic 44 | . . . . 9 . 3 2 4 3 2 . . . . . . . . . . . 21 Robot Hit Streak 37 | 1 9 12 10 13 . 2 . 2 3 . 4 . . . . . . . . . . 37 Robot Miss Streak 10 | 3 2 1 . 10 . 1 2 4 . . 1 . . . . . . . . . . 7 Penetration Max 2 | . . . . . . . . . . . . . . . . . . . . . . 2 Secondary Targets 8 | . 3 . . . . . . . . . . . . . . . . . . . . 5 Max Gunslinging Chain 1 | . 1 . . . . . . . . . . . . . . . . . . . . 1 Capacitor 119 | . . . . . . . . . . . . . . . . . . . . . . 119 Shots Hit Robots 562 | 2 56 51 1 65 . 4 2 5 1 . 4 . 1 . . 6 4 6 . 4 1 349 Core Hits 275 | 4 25 7 . 74 . 1 6 5 . . 1 . 1 . . 3 2 2 . 1 . 143 Critical Kills 14 | . . . . . . . . . . . . . . . . . . . . . . 14 Critical Parts Destroyed 23 | . 1 . . . . . . . . . . . . . . . . . . . . 22 Critical Strikes 56 | . 1 . . 4 . . . . . . . . . . . . . 1 . 1 . 49 Meltdown 4 | . . . . . . . . . . . . . . . . . . . . . . 4 Destroy 39 | . 1 . . . . . . . . . . . . . . . . . . . . 38 Blast 9 | . . . . 2 . . . . . . . . . . . . . . . . . 7 Corrupt 1 | . . . . 1 . . . . . . . . . . . . . . . . . . Sever 3 | . . . . 1 . . . . . . . . . . . . . 1 . 1 . . Melee Attacks 118 | . . . . 18 . 15 6 4 1 2 4 . 5 . . 6 4 11 13 15 10 4 Impact . | . . . . . . . . . . . . . . . . . . . . . . . Slashing 117 | . . . . 18 . 15 6 4 . 2 4 . 5 . . 6 4 11 13 15 10 4 Piercing . | . . . . . . . . . . . . . . . . . . . . . . . Entropic 1 | . . . . . . . . . 1 . . . . . . . . . . . . . Sneak Attacks 11 | . . . . 1 . . 2 . . . . . 1 . . . 4 2 . . 1 . Combat Hostiles . | . . . . . . . . . . . . . . . . . . . . . . . Follow-up Attacks . | . . . . . . . . . . . . . . . . . . . . . . . Damage Inflicted 23545 | 45 705 143 . 3219 . 149 407 376 146 94 152 . 93 . . 546 367 369 . 191 91 16452 Guns 9950 | 45 702 143 . 128 . 66 . . . . . . . . . . . . . . . 8866 Cannons 9016 | . . . . 1366 . . . . . . 152 . . . . . . . . . . 7498 Explosions 2291 | . . . . 1550 . . 273 228 146 94 . . . . . . . . . . . . Melee 2197 | . . . . 175 . 83 134 148 . . . . 93 . . 546 367 369 . 191 91 . Ramming 91 | . 3 . . . . . . . . . . . . . . . . . . . . 88 Kinetic 14198 | 45 702 143 . 1021 . . . . . . . . . . . . . . . . . 12287 Thermal 4798 | . . . . 799 . . 118 57 . . 152 . . . . . . . . . . 3672 Explosive 1106 | . . . . 1106 . . . . . . . . . . . . . . . . . . Electromagnetic 1155 | . . . . 118 . 66 155 171 146 94 . . . . . . . . . . . 405 Impact . | . . . . . . . . . . . . . . . . . . . . . . . Slashing 2197 | . . . . 175 . 83 134 148 . . . . 93 . . 546 367 369 . 191 91 . Piercing . | . . . . . . . . . . . . . . . . . . . . . . . Highest Corruption 25 | . 4 4 . 6 8 21 22 22 23 . 2 2 2 2 2 2 2 . . 6 6 25 Average Corruption 16 | . 3 4 . 5 8 17 21 22 22 . 1 2 2 2 2 2 2 . . 2 6 20 Corruption Purged . | . . . . . . . . . . . . . . . . . . . . . . . Corruption Blocked . | . . . . . . . . . . . . . . . . . . . . . . . Effects 415 | . 8 10 . 5 1 20 6 9 1 . . 1 2 1 1 . 6 . . 1 6 337 Message Errors 106 | . 3 3 . 3 . 7 2 3 . . . . . 1 1 . 2 . . . 1 80 Matter Fused 100 | . 3 3 . 1 . 3 1 4 1 . . 1 . . . . 1 . . 1 1 80 Heat Flow Errors 52 | . . . . . . 1 1 . . . . . . . . . 2 . . . 2 46 Energy Discharges 50 | . . 2 . 1 1 2 1 . . . . . 1 . . . 1 . . . 1 40 Parts Rejected 2 | . . . . . . . . . . . . . . . . . . . . . . 2 Parts Fused 8 | . 1 . . . . . 1 1 . . . . . . . . . . . . . 5 Data Loss (minor) 45 | . 1 . . . . 5 . . . . . . 1 . . . . . . . 1 37 Data Loss (major) 17 | . . . . . . 1 . 1 . . . . . . . . . . . . . 15 Misfires 1 | . . 1 . . . . . . . . . . . . . . . . . . . . Alerts 8 | . . 1 . . . . . . . . . . . . . . . . . . . 7 Misdirections 7 | . . . . . . 1 . . . . . . . . . . . . . . . 6 Weapon Failures 19 | . . . . . . . . . . . . . . . . . . . . . . 19 Overload Shots . | . . . . . . . . . . . . . . . . . . . . . . . Overflow Damage 1324 | . . . . 219 . 16 108 34 . 24 . . . . . 236 155 26 . . 51 455 Projectiles 419 | . . . . . . . . . . . . . . . . . . . . . . 419 Explosions 273 | . . . . 219 . . 6 24 . 24 . . . . . . . . . . . . Melee 632 | . . . . . . 16 102 10 . . . . . . . 236 155 26 . . 51 36 Knockbacks 39 | . . . . 32 . . . . . . . . . . . . . . . . . 7 Impact . | . . . . . . . . . . . . . . . . . . . . . . . Kinetic 35 | . . . . 28 . . . . . . . . . . . . . . . . . 7 Secondary 4 | . . . . 4 . . . . . . . . . . . . . . . . . . Self-Inflicted Damage 311 | . . . . 162 . . 106 . . . . . . . . . . . . . . 43 Shots 6 | . . . . 3 . . 3 . . . . . . . . . . . . . . . Rammed 5 | . 2 . . . . . . . . . . . . . . . . . . . . 3 Targets Rammed 5 | . 2 . . . . . . . . . . . . . . . . . . . . 3 Kicked . | . . . . . . . . . . . . . . . . . . . . . . . Crushed . | . . . . . . . . . . . . . . . . . . . . . . . Highest Temperature 398 | . 12 . . 398 . 285 156 12 10 188 344 8 304 143 . . 186 56 14 1 132 204 Average Temperature 95 | . 5 . . 177 . 95 62 6 5 76 136 3 61 28 . . 44 19 6 1 44 83 Received Heat Transfer 1184 | . 147 6 . 618 . 36 . 18 . 27 60 . 21 . . . 18 . 9 27 . 197 Effects 10 | . . . . 8 . . . . . . 2 . . . . . . . . . . . Shutdowns 5 | . . . . 4 . . . . . . 1 . . . . . . . . . . . Energy Bleed 3 | . . . . 2 . . . . . . 1 . . . . . . . . . . . Interference 1 | . . . . 1 . . . . . . . . . . . . . . . . . . Matter Decay 1 | . . . . 1 . . . . . . . . . . . . . . . . . . Siege Activations . | . . . . . . . . . . . . . . . . . . . . . . . Martial Activations . | . . . . . . . . . . . . . . . . . . . . . . . Shielding Activations . | . . . . . . . . . . . . . . . . . . . . . . . Robots Disrupted 1 | . . . . . . . . . . . . . . . . . . . . . . 1 Combat Hostiles 1 | . . . . . . . . . . . . . . . . . . . . . . 1 Robots Corrupted 9 | . . . . 1 . . . . 4 . . . . . . . . . . . . 4 Combat Hostiles 6 | . . . . 1 . . . . 4 . . . . . . . . . . . . 1 Parts Fried 7 | . . . . 1 . . . . 2 1 . . . . . . . . . . . 3 Impact Corruptions 2 | . . . . . . . . . . . . . . . . . . . . . . 2 Robots Melted 4 | . . . . . . . . . . . . . . . . . . . . . . 4 Combat Hostiles 4 | . . . . . . . . . . . . . . . . . . . . . . 4 Parts Melted 7 | . . . . 2 . . . . . . . . . . . . . . . . . 5 Heat Transferred 2773 | . . . . 750 . . 100 50 . . 148 . . . . . . . . . . 1725 Parts Sabotaged 3 | . . . . . . . . . . . . . . . . . . . . . . 3 Parts Stolen . | . . . . . . . . . . . . . . . . . . . . . . . Parts Stripped . | . . . . . . . . . . . . . . . . . . . . . . . Power Chain Reactions 7 | . . . . . . . 4 3 . . . . . . . . . . . . . . Alert | -11 -10 -10 -7 -5 -5 -5 -5 -5 -5 -4 -4 -4 -4 -4 -4 -4 -3 -3 -3 -2 -2 -2 ------- Run | Yrd Mat Sub Scr Fac Was Fac Upp Upp War Pro Fac Was Fac Upp Upp Zhi Pro Res Tes Res Qua Frg Maximum Alert Level 5 | . . . . 2 . . . . . . . . . . . . . . . . . 5 Low Security (%) 37 | 100 100 . . 62 100 100 . . . . 100 100 100 . . . . 100 100 100 100 8 Level 1 6 | . . . . 28 . . . . . . . . . . . . . . . . . 5 Level 2 4 | . . . . 9 . . . . . . . . . . . . . . . . . 5 Level 3 6 | . . . . . . . . . . . . . . . . . . . . . . 9 Level 4 7 | . . . . . . . . . . . . . . . . . . . . . . 12 Level 5 38 | . . . . . . . . . . . . . . . . . . . . . . 58 High Security . | . . . . . . . . . . . . . . . . . . . . . . . Max Security . | . . . . . . . . . . . . . . . . . . . . . . . Peak Influence 1798 | 10 137 . . 493 92 59 . . . . 155 15 51 . . . . 67 131 87 54 1798 Initial 150 | . . . . . 92 57 . . . . 150 15 . . . . . 43 . 70 3 4 Average 883 | 1 70 . . 143 88 15 . . . . 103 4 14 . . . . 24 48 41 27 1323 Influence Increases 5933 | 15 409 . . 938 . 106 110 190 80 85 255 . 111 . . 10 165 135 186 188 106 2844 Destroy 0b10 Robot/C 2240 | . 260 . . 360 . . 100 100 60 . . . . . . . . . . . . 1360 Destroy 0b10 Robot/NC 200 | 15 20 . . 60 . 5 . 5 5 10 . . 5 . . 10 . 10 . . 5 50 Destroy Leader 324 | . 68 . . 78 . 2 10 10 . . . . 2 . . . . 2 . . . 152 Allied During Kill 4 | . . . . 4 . . . . . . . . . . . . . . . . . . Successful Hack 244 | . 15 . . 12 . . . . . . . . 37 . . . . 63 . 44 23 50 Disable Machine 450 | . . . . 120 . 15 . . . . 15 . 15 . . . . . 120 15 30 120 Anti-Garrison Action 150 | . . . . . . . . . . . . . . . . . . . . . . 150 Destroy Structure 761 | . 1 . . 214 . 24 . . . . 60 . 22 . . . . 30 6 24 33 347 Advance Influence 150 | . . . . . . . . . . . 150 . . . . . . . . . . . Partial Spotted 195 | . . . . . . 15 . . . . 30 . 15 . . . . 15 15 75 . 30 Lose Combat Pursuer 1215 | . 45 . . 90 . 45 . 75 15 75 . . 15 . . . 165 15 45 30 15 585 Influence Decreases 4145 | 15 307 102 . 673 183 186 22 118 182 145 210 45 70 41 . 10 100 200 60 307 104 1065 Entered New Map 623 | . . 50 . . 173 25 2 18 162 60 . 30 . 16 . . . 22 . 56 4 5 Time Decay 2528 | 15 307 50 . 285 10 141 20 80 20 80 180 15 70 25 . 10 100 134 50 96 100 740 Lost Part 547 | . . 2 . 80 . 20 . 20 . 5 30 . . . . . . . 10 60 . 320 Lost Ally 26 | . . . . 8 . . . . . . . . . . . . . 10 . 8 . . Purge Threat 421 | . . . . 300 . . . . . . . . . . . . . 34 . 87 . . Squads Dispatched 39 | . 3 . . 6 . 4 . . . . 4 . 3 . . . . 8 . 4 1 6 Investigation 24 | . 1 . . 4 . 3 . . . . 2 . 3 . . . . 4 . 3 . 4 Extermination 9 | . . . . 2 . 1 . . . . 1 . . . . . . 2 . 1 1 1 Reinforcement 6 | . 2 . . . . . . . . . 1 . . . . . . 2 . . . 1 Assault . | . . . . . . . . . . . . . . . . . . . . . . . Garrison . | . . . . . . . . . . . . . . . . . . . . . . . Intercept . | . . . . . . . . . . . . . . . . . . . . . . . Searches Triggered . | . . . . . . . . . . . . . . . . . . . . . . . Construction Impeded . | . . . . . . . . . . . . . . . . . . . . . . . Haulers Reinforced 1 | . . . . . . . . . . . . . . . . . . 1 . . . . Active Scanning Responses . | . . . . . . . . . . . . . . . . . . . . . . . Cargo Convoy Interrupts . | . . . . . . . . . . . . . . . . . . . . . . . Stealth | -11 -10 -10 -7 -5 -5 -5 -5 -5 -5 -4 -4 -4 -4 -4 -4 -4 -3 -3 -3 -2 -2 -2 --------- Run | Yrd Mat Sub Scr Fac Was Fac Upp Upp War Pro Fac Was Fac Upp Upp Zhi Pro Res Tes Res Qua Frg Distress Signals 27 | . 2 . . . . . . . . . . . . . . . . 1 . . 1 23 Communications Jammed 71 | . . . . 24 . . . . . . . . . . . . . . . 33 2 12 Distress Signals 71 | . . . . 24 . . . . . . . . . . . . . . . 33 2 12 Times Spotted 534 | . 21 3 . 29 5 27 5 8 3 20 27 . 5 5 . . 22 5 6 19 5 319 Peak Tracking Total 13 | . 7 1 . 5 5 10 5 5 4 6 9 . 2 4 . . 8 2 3 11 4 13 Tactical Retreats 69 | . 2 . . 2 . 5 . 3 1 5 5 . 2 1 . . 8 2 2 3 1 27 Traps | -11 -10 -10 -7 -5 -5 -5 -5 -5 -5 -4 -4 -4 -4 -4 -4 -4 -3 -3 -3 -2 -2 -2 ------- Run | Yrd Mat Sub Scr Fac Was Fac Upp Upp War Pro Fac Was Fac Upp Upp Zhi Pro Res Tes Res Qua Frg Traps Triggered 18 | . 4 . . 1 . 3 . . 1 . 1 . . . . . . 1 1 . . 6 Indirectly . | . . . . . . . . . . . . . . . . . . . . . . . Trap Hack Attempts . | . . . . . . . . . . . . . . . . . . . . . . . Triggered . | . . . . . . . . . . . . . . . . . . . . . . . Disarmed . | . . . . . . . . . . . . . . . . . . . . . . . Reprogrammed . | . . . . . . . . . . . . . . . . . . . . . . . Reused . | . . . . . . . . . . . . . . . . . . . . . . . Traps Extracted . | . . . . . . . . . . . . . . . . . . . . . . . Installed . | . . . . . . . . . . . . . . . . . . . . . . . Triggered . | . . . . . . . . . . . . . . . . . . . . . . . Machines | -11 -10 -10 -7 -5 -5 -5 -5 -5 -5 -4 -4 -4 -4 -4 -4 -4 -3 -3 -3 -2 -2 -2 ---------- Run | Yrd Mat Sub Scr Fac Was Fac Upp Upp War Pro Fac Was Fac Upp Upp Zhi Pro Res Tes Res Qua Frg Machines Disabled 35 | . . . . 8 . 1 . . 3 1 1 . 1 . . . . . 8 1 2 9 Max in Single Turn 4 | . . . . 4 . 1 . . 2 1 1 . 1 . . . . . 1 1 1 1 Garrison Access 6 | . . . . . . . . . . . . . . . . . . 2 1 1 1 1 Machines Repaired . | . . . . . . . . . . . . . . . . . . . . . . . Machines Dismantled . | . . . . . . . . . . . . . . . . . . . . . . . Machines Sabotaged . | . . . . . . . . . . . . . . . . . . . . . . . Overloaded Fab Kills . | . . . . . . . . . . . . . . . . . . . . . . . Hacking | -11 -10 -10 -7 -5 -5 -5 -5 -5 -5 -4 -4 -4 -4 -4 -4 -4 -3 -3 -3 -2 -2 -2 --------- Run | Yrd Mat Sub Scr Fac Was Fac Upp Upp War Pro Fac Was Fac Upp Upp Zhi Pro Res Tes Res Qua Frg Machines Accessed 89 | . 7 . 1 13 . 7 . 1 3 1 4 . 5 1 . 4 . 13 4 10 5 10 Terminals 40 | . 5 . . 8 . 2 . . . . 2 . 2 . . . . 4 2 7 3 5 Fabricators 10 | . . . . 2 . . . . . . . . . . . . . 3 1 . . 4 Repair Stations 1 | . . . . . . 1 . . . . . . . . . . . . . . . . Recycling Units 20 | . 2 . . 3 . 3 . . . . 2 . 3 . . . . 4 . 2 . 1 Scanalyzers 1 | . . . . . . . . . . . . . . . . . . . . . 1 . Garrison Access 6 | . . . . . . 1 . . . . . . . . . . . 2 1 1 1 . Total Hacks 251 | . 22 . 1 26 . 14 . 1 10 1 11 . 18 1 . 17 . 58 9 29 14 19 Successful 160 | . 11 . 1 11 . 3 . 1 10 1 7 . 15 1 . 17 . 44 4 17 11 6 Failed 91 | . 11 . . 15 . 11 . . . . 4 . 3 . . . . 14 5 12 3 13 Catastrophic 17 | . 1 . . 5 . 2 . . . . 1 . . . . . . 1 . 2 . 5 Database Lockouts . | . . . . . . . . . . . . . . . . . . . . . . . Manual 165 | . 15 . . 21 . 10 . . . . 8 . 14 . . . . 47 6 23 8 13 Terminals 152 | . 17 . . 15 . 3 . . . . 8 . 13 . . . . 43 5 25 12 11 Fabricators 21 | . . . . 6 . . . . . . . . . . . . . 7 2 . . 6 Repair Stations 2 | . . . . . . 2 . . . . . . . . . . . . . . . . Recycling Units 35 | . 5 . . 5 . 6 . . . . 3 . 5 . . . . 6 . 3 . 2 Scanalyzers 1 | . . . . . . . . . . . . . . . . . . . . . 1 . Garrison Access 9 | . . . . . . 3 . . . . . . . . . . . 2 2 1 1 . Terminal Hacks 97 | . 4 . 1 5 . . . 1 10 1 2 . 5 1 . 17 . 27 . 12 7 4 Record 9 | . . . 1 . . . . . . 1 . . . . . 5 . . . . 2 . Part Schematic 4 | . . . . . . . . . . . . . . . . 4 . . . . . . Robot Analysis 7 | . 2 . . . . . . . . . . . . . . 4 . . . . . 1 Prototype ID Bank 15 | . 2 . . . . . . . 9 . . . . . . 4 . . . . . . Open Door 3 | . . . . . . . . 1 1 . . . . 1 . . . . . . . . Branch Access Points 3 | . . . . . . . . . . . 1 . 1 . . . . . . 1 . . Emergency Access Points 1 | . . . . . . . . . . . . . . . . . . 1 . . . . Terminal Index 3 | . . . . 1 . . . . . . . . 1 . . . . . . 1 . . Recycling Unit Index 1 | . . . . . . . . . . . . . . . . . . . . 1 . . Garrison Index 1 | . . . . . . . . . . . . . . . . . . 1 . . . . Alert Level 1 | . . . . 1 . . . . . . . . . . . . . . . . . . Unreport Threat 5 | . . . . 2 . . . . . . . . . . . . . 1 . 2 . . Locate Traps 9 | . . . . 1 . . . . . . 1 . 1 . . . . 1 . 2 2 1 Dispatch Records 1 | . . . . . . . . . . . . . . . . . . 1 . . . . Recall Investigation 1 | . . . . . . . . . . . . . . . . . . 1 . . . . Recall Extermination 1 | . . . . . . . . . . . . . . . . . . 1 . . . . Zone Layout 32 | . . . . . . . . . . . . . 2 . . . . 20 . 5 3 2 Fabricator Hacks 3 | . . . . 1 . . . . . . . . . . . . . 1 1 . . . Network Status 3 | . . . . 1 . . . . . . . . . . . . . 1 1 . . . Repair Station Hacks . | . . . . . . . . . . . . . . . . . . . . . . . Recycling Unit Hacks 6 | . 1 . . 1 . . . . . . 1 . 2 . . . . 1 . . . . Retrieve Components 6 | . 1 . . 1 . . . . . . 1 . 2 . . . . 1 . . . . Scanalyzer . | . . . . . . . . . . . . . . . . . . . . . . . Garrison Access Hacks 5 | . . . . . . . . . . . . . . . . . . 2 1 1 1 . Seal Access 5 | . . . . . . . . . . . . . . . . . . 2 1 1 1 . Unauthorized Hacks 49 | . 6 . . 4 . 3 . . . . 4 . 8 . . . . 13 2 4 3 2 Terminals 24 | . 6 . . 1 . . . . . . 2 . 5 . . . . 5 1 2 2 . Assimilate 5 | . . . . . . . . . . . . . 1 . . . . 3 . 1 . . Botnet 9 | . 1 . . 1 . . . . . . 1 . 2 . . . . 1 1 1 1 . Operators 3 | . . . . . . . . . . . . . 1 . . . . 1 . . 1 . Skim 7 | . 5 . . . . . . . . . 1 . 1 . . . . . . . . . Fabricators 6 | . . . . . . . . . . . . . . . . . . 4 1 . . 1 Liberate 5 | . . . . . . . . . . . . . . . . . . 3 1 . . 1 Haulers 1 | . . . . . . . . . . . . . . . . . . 1 . . . . Repair Stations . | . . . . . . . . . . . . . . . . . . . . . . . Recycling Units 18 | . . . . 3 . 3 . . . . 2 . 3 . . . . 4 . 2 . 1 Fedlink 18 | . . . . 3 . 3 . . . . 2 . 3 . . . . 4 . 2 . 1 Scanalyzers 1 | . . . . . . . . . . . . . . . . . . . . . 1 . Researchers 1 | . . . . . . . . . . . . . . . . . . . . . 1 . Garrison Access . | . . . . . . . . . . . . . . . . . . . . . . . Data Cores Recovered . | . . . . . . . . . . . . . . . . . . . . . . . Used . | . . . . . . . . . . . . . . . . . . . . . . . Hacking Detections 55 | . 6 . . 11 . 6 . . . . 2 . 2 . . . . 7 2 7 3 9 Full Trace Events 4 | . . . . 1 . . . . . . . . . . . . . . . 1 . 2 Feedback Events 2 | . . . . . . . . . . . . . . . . . . . . 1 . 1 Corruption 2 | . . . . . . . . . . . . . . . . . . . . 1 . 1 Feedback Blocked . | . . . . . . . . . . . . . . . . . . . . . . . Robot Schematics Acquired . | . . . . . . . . . . . . . . . . . . . . . . . Robots Built . | . . . . . . . . . . . . . . . . . . . . . . . Authchips . | . . . . . . . . . . . . . . . . . . . . . . . Time . | . . . . . . . . . . . . . . . . . . . . . . . Total Robot Build Rating . | . . . . . . . . . . . . . . . . . . . . . . . Part Schematics Acquired 4 | . . . . . . . . . . . . . . . . 4 . . . . . . Parts Built . | . . . . . . . . . . . . . . . . . . . . . . . Authchips . | . . . . . . . . . . . . . . . . . . . . . . . Time . | . . . . . . . . . . . . . . . . . . . . . . . Total Part Build Rating . | . . . . . . . . . . . . . . . . . . . . . . . Parts Repaired . | . . . . . . . . . . . . . . . . . . . . . . . Time . | . . . . . . . . . . . . . . . . . . . . . . . Parts Recycled . | . . . . . . . . . . . . . . . . . . . . . . . Recycled Matter . | . . . . . . . . . . . . . . . . . . . . . . . Retrieved Matter . | . . . . . . . . . . . . . . . . . . . . . . . Retrieved Components 7 | . 2 . . 1 . . . . . . 3 . . . . . . 1 . . . . Parts Scanalyzed . | . . . . . . . . . . . . . . . . . . . . . . . Part Schematics Acquired . | . . . . . . . . . . . . . . . . . . . . . . . Parts Damaged . | . . . . . . . . . . . . . . . . . . . . . . . Bothacking | -11 -10 -10 -7 -5 -5 -5 -5 -5 -5 -4 -4 -4 -4 -4 -4 -4 -3 -3 -3 -2 -2 -2 ------------ Run | Yrd Mat Sub Scr Fac Was Fac Upp Upp War Pro Fac Was Fac Upp Upp Zhi Pro Res Tes Res Qua Frg Used RIF Installer . | . . . . . . . . . . . . . . . . . . . . . . . Robots Hacked . | . . . . . . . . . . . . . . . . . . . . . . . Non-combat . | . . . . . . . . . . . . . . . . . . . . . . . Combat . | . . . . . . . . . . . . . . . . . . . . . . . Robot Hacks Applied . | . . . . . . . . . . . . . . . . . . . . . . . Relay Couplers Released 1 | . . . . . . . . . . . . . . . . . . . . . . 1 Machine Destruction 1 | . . . . . . . . . . . . . . . . . . . . . . 1 Fabnet Peak Effective % . | . . . . . . . . . . . . . . . . . . . . . . . Robots Rewired . | . . . . . . . . . . . . . . . . . . . . . . . Allies Hacked 1 | . . . . . . . . . . . . . . . . . . 1 . . . . Hacks Repelled . | . . . . . . . . . . . . . . . . . . . . . . . Allies | -11 -10 -10 -7 -5 -5 -5 -5 -5 -5 -4 -4 -4 -4 -4 -4 -4 -3 -3 -3 -2 -2 -2 -------- Run | Yrd Mat Sub Scr Fac Was Fac Upp Upp War Pro Fac Was Fac Upp Upp Zhi Pro Res Tes Res Qua Frg Total Allies 7 | . . . 1 1 . . . . . . . . 1 . . . . 3 . 1 . . Largest Group 2 | . . . 1 1 . . . . . . . . 1 . . . . 2 . 1 . . Highest-Rated Group 128 | . . . 87 87 . . . . . . . . 45 . . . . 128 . 45 . . Highest-Rated Ally 87 | . . . 87 87 . . . . . . . . 45 . . . . 64 . 45 . . Total Orders 1 | . . . . . . . . . . . . . 1 . . . . . . . . . STAY 1 | . . . . . . . . . . . . . 1 . . . . . . . . . Ally Attacks 11 | . . . . 6 . . . . . . . . . . . . . 5 . . . . Total Damage 811 | . . . . 581 . . . . . . . . . . . . . 230 . . . . Kills 2 | . . . . 2 . . . . . . . . . . . . . . . . . . Allies Corrupted 2 | . . . . . . . . . . . . . . . . . . 2 . . . . Allies Melted 2 | . . . . 2 . . . . . . . . . . . . . . . . . . Intel | -11 -10 -10 -7 -5 -5 -5 -5 -5 -5 -4 -4 -4 -4 -4 -4 -4 -3 -3 -3 -2 -2 -2 ------- Run | Yrd Mat Sub Scr Fac Was Fac Upp Upp War Pro Fac Was Fac Upp Upp Zhi Pro Res Tes Res Qua Frg Active Infowar (turns) 15870 | 9 985 459 2496 666 31 448 136 162 175 365 377 92 204 271 73 58 377 394 108 205 167 7612 Optics 6233 | . . . . . . . . . . . . . . . . . . . . . . 6233 Sensors 5947 | . . . . . . 312 136 162 175 365 344 . 178 271 73 58 377 394 108 205 167 2622 IFF 400 | . . . . 233 31 136 . . . . . . . . . . . . . . . . Terrain 4779 | . . 316 2496 666 31 338 . . . . . . . . . . . 242 108 199 159 224 Seismic 1137 | 9 985 143 . . . . . . . . . . . . . . . . . . . . Decoding 663 | . . . . . . . . . . . 377 92 194 . . . . . . . . . Jamming 3325 | . . . . 104 . 368 136 112 15 249 1 24 204 271 73 58 265 169 108 205 153 810 ECM 838 | . . . . . . 100 24 . . 41 258 68 17 27 . . 130 82 . 66 25 . Robot Analysis Total 7 | . 2 . . . . . . . . . . . . . . 4 . . . . . 1 Derelict Logs Recovered 10 | . . . 5 . . . 1 2 . . . . . 1 1 . . . . . . . Drone Launches . | . . . . . . . . . . . . . . . . . . . . . . . Drone Recoveries . | . . . . . . . . . . . . . . . . . . . . . . . Decoded 0b10 Intel 18 | . . . . . . . . . . . 12 1 5 . . . . . . . . . Traps 2 | . . . . . . . . . . . 1 . 1 . . . . . . . . . Items 14 | . . . . . . . . . . . 10 1 3 . . . . . . . . . Machines 1 | . . . . . . . . . . . 1 . . . . . . . . . . . Guards 1 | . . . . . . . . . . . . . 1 . . . . . . . . . Exploration | -11 -10 -10 -7 -5 -5 -5 -5 -5 -5 -4 -4 -4 -4 -4 -4 -4 -3 -3 -3 -2 -2 -2 ------------- Run | Yrd Mat Sub Scr Fac Was Fac Upp Upp War Pro Fac Was Fac Upp Upp Zhi Pro Res Tes Res Qua Frg Turns Passed 17772 | 86 985 463 3748 1032 31 448 136 162 240 405 377 92 204 271 73 58 385 394 108 205 202 7667 Spaces Moved 15939 | 43 517 206 2271 864 85 1007 351 315 560 738 531 291 553 474 298 144 847 1362 319 572 454 3137 Core 10 | 9 . . . . . . . . . . . . . . . . . . . . . 1 Treads 3337 | 34 517 206 2271 247 . . . . . . . . . . . . . . . . . 62 Legs . | . . . . . . . . . . . . . . . . . . . . . . . Wheels 2590 | . . . . 85 . . . . . . . . . . . . . . . . . 2505 Hover . | . . . . . . . . . . . . . . . . . . . . . . . Flight 10002 | . . . . 532 85 1007 351 315 560 738 531 291 553 474 298 144 847 1362 319 572 454 569 Fastest Speed 7 | 50 160 160 160 35 35 26 28 34 29 29 28 28 24 24 24 24 24 18 18 15 7 12 Average Speed 63 | 148 160 166 160 79 35 31 30 34 37 29 28 28 24 24 24 24 24 19 18 15 19 72 Slowest Speed 1050 | 200 160 240 160 163 35 114 34 34 119 98 32 28 94 24 24 24 24 20 18 19 23 1050 Overloaded Moves 97 | . . . . . . 24 5 . . . . . . . . . . . . . 10 58 Propulsion Burnouts . | . . . . . . . . . . . . . . . . . . . . . . . Robots Hopped 47 | . . . . 2 . 2 . 1 3 . 1 1 2 . . . . 19 . 12 1 3 Potential Cave-ins 65 | . . . . . . . . . . . . . . 2 . . 2 . . . . 61 Cave-ins Triggered 2 | . . . . . . . . . . . . . . . . . . . . . . 2 Exploration Rate (%) 50 | 3 83 17 90 27 75 24 60 59 72 75 16 95 14 59 48 60 76 34 43 25 57 58 Regions Visited 22 Branch Regions 13 Pre-discovered Areas 6 | . 1 . . 1 . . . . . . . . . 1 . 3 . . . . . . Known Exits Taken 11 | . . . . . . 1 1 . . . . . 1 1 1 1 1 1 1 1 1 . Unknown Exits Taken 7 | 1 1 1 1 . . . . 1 1 1 . . . . . . . . . . . . Scrap Searched 17 | . . 2 4 . . . 3 2 . 2 . . . 1 2 . 1 . . . . . Spaces Dug 213 | . . . . 20 . 12 4 . . 6 34 . 13 18 . . 23 18 3 9 12 41 Terrain Destroyed 439 | . . . . 98 . 12 20 12 . 7 37 . 13 18 . . 23 18 3 9 12 157 Melee 61 | . . . . 14 . 11 4 . . . 4 . 3 . . . . 5 3 6 7 4 Projectile 289 | . . . . 23 . 1 . . . 7 33 . 10 18 . . 23 13 . 3 5 153 AOE 89 | . . . . 61 . . 16 12 . . . . . . . . . . . . . . Terrain Rammed . | . . . . . . . . . . . . . . . . . . . . . . . Walls Destroyed . | . . . . . . . . . . . . . . . . . . . . . . . Machines Disabled . | . . . . . . . . . . . . . . . . . . . . . . . Actions | -11 -10 -10 -7 -5 -5 -5 -5 -5 -5 -4 -4 -4 -4 -4 -4 -4 -3 -3 -3 -2 -2 -2 --------- Run | Yrd Mat Sub Scr Fac Was Fac Upp Upp War Pro Fac Was Fac Upp Upp Zhi Pro Res Tes Res Qua Frg Total 22502 | 56 589 271 2404 1085 85 1108 369 358 582 913 710 299 602 611 299 159 997 1433 350 646 544 8032 Wait 5222 | . 17 9 54 69 1 42 3 34 11 157 119 . 22 118 . . 121 33 13 59 61 4279 Move 15832 | 42 516 205 2270 860 84 1002 350 312 555 737 529 288 548 473 297 143 846 1323 318 552 451 3131 Hop 39 | . . . . 2 . 2 . 1 1 . 1 1 2 . . . . 19 . 7 1 2 Pick Up 130 | 4 9 12 34 10 . 7 1 . 2 2 3 2 1 . 1 2 . 5 3 1 3 28 Fast Attach 129 | 7 . . 1 18 . 8 2 1 2 2 4 3 5 . . 3 . 4 . 3 4 62 Attach 53 | . . 6 2 11 . 2 1 1 3 1 4 . . . . 1 . 6 . 2 3 10 Detach 21 | . . . . 2 . . 1 1 2 . 3 . 1 . . . . 2 . . . 9 Swap 71 | . 2 2 2 16 . 8 1 . 1 . 1 2 3 2 . . 3 12 . 4 2 10 Drop 159 | . . 7 40 21 . 18 2 . 1 2 3 3 5 . 1 4 . 5 3 . 4 40 Fire 646 | 3 43 30 1 58 . 4 2 4 3 10 39 . 10 18 . . 23 13 . 3 5 377 Melee 118 | . . . . 18 . 15 6 4 1 2 4 . 5 . . 6 4 11 13 15 10 4 Ram 3 | . . . . . . . . . . . . . . . . . . . . . . 3 Kick . | . . . . . . . . . . . . . . . . . . . . . . . Crush 2 | . 2 . . . . . . . . . . . . . . . . . . . . . Escape Stasis 38 | . . . . . . . . . . . . . . . . . . . . . . 38 Rewire . | . . . . . . . . . . . . . . . . . . . . . . . Trap . | . . . . . . . . . . . . . . . . . . . . . . . Miscellaneous 39 | . . . . . . . . . . . . . . . . . . . . . . 39 Route ------- -11/Scrapyard -10/Materials (discovered 5 exits: [*Mat x3] / [*Min] / [*Sub]) -10/Subcaves -7/Scraptown (discovered 2 exits: *Fac x2) -5/Factory -5/Waste -5/Factory (discovered 2 exits: *Fac / *Upp) -5/Upper Caves -5/Upper Caves (discovered 2 exits: *Fac / *War) -5/Warlord -4/Proximity Caves -4/Factory (discovered 5 exits: Upp x2 / *Ext x2 / Arm) -4/Waste -4/Factory (discovered 5 exits: *Upp x2 / Ext x2 / Arm) -4/Upper Caves -4/Upper Caves (discovered 2 exits: *Res / *Zhi) -4/Zhirov -3/Proximity Caves -3/Research (discovered 2 exits: *Tes x2) -3/Testing -2/Research (discovered 2 exits: *Qua x2) -2/Quarantine (discovered 3 exits: *Acc / *Sec / *Frg) -2/Protoforge (discovered 1 exit: *Acc) History --------- Turn | Location | Event 17 | -11/Scrapyard | Discovered new exit (range 15) 87 | -11/Scrapyard | Entered Materials 246 | -10/Materials | Discovered new exit (range 6) 335 | -10/Materials | Build established: Mutant 406 | -10/Materials | Discovered new exit (range 6) 427 | -10/Materials | Discovered new exit (range 16) 566 | -10/Materials | Discovered new exit (range 13) 587 | -10/Materials | Derelicts attacked the area 699 | -10/Materials | Discovered new exit (range 8) 988 | -10/Materials | Learned location of 2 exits from Mines 1047 | -10/Materials | Learned location of Recycling (-7) 1072 | -10/Materials | Entered Subcaves 1073 | -10/Subcaves | Approached by a straggling Scientist 1264 | -10/Subcaves | Lost 4 parts (1p1n1u1w) 1264 | -10/Subcaves | Core integrity fell below 50% 1496 | -10/Subcaves | Scientist uncovered a shortcut to Scraptown 1535 | -10/Subcaves | Entered Scraptown 1535 | -7/Scraptown | System corruption cleaned by C-Scrubber 1726 | -7/Scraptown | Visited Fellowship of the Rings 1764 | -7/Scraptown | Visited UFD Registry 1764 | -7/Scraptown | Registered with UFD as "Matterunit" 1787 | -7/Scraptown | Visited IN-MT5's Study 1806 | -7/Scraptown | Visited The Evicted 1846 | -7/Scraptown | Visited Awakened 1877 | -7/Scraptown | Discovered new exit (range 16) 1891 | -7/Scraptown | Scanned Subdweller tech in exchange for log data 1895 | -7/Scraptown | Learned location of 1 exit from Research 1897 | -7/Scraptown | Learned Factory stockpile data 1899 | -7/Scraptown | Learned Research stockpile data 1900 | -7/Scraptown | Learned Research security intel 2390 | -7/Scraptown | Visited Observation Area 2457 | -7/Scraptown | Visited Botcube Research 2513 | -7/Scraptown | Visited Research Penetration Think Tank 2675 | -7/Scraptown | Visited Modified Component R&D 2715 | -7/Scraptown | Visited Scrap Suit Storage 2735 | -7/Scraptown | Visited Supply Room 2862 | -7/Scraptown | Visited Junk Repository 2897 | -7/Scraptown | Visited Scrapoid Research Area 2919 | -7/Scraptown | Visited A0-MCA Data Center 2929 | -7/Scraptown | Given a B+ rating by A0-MCA 3074 | -7/Scraptown | Found Scrap Suit 3754 | -7/Scraptown | Visited Red Mages 3836 | -7/Scraptown | Visited Comm Corps 3990 | -7/Scraptown | Visited Spacefarers 4288 | -7/Scraptown | Found Lrg. Botcube 4723 | -7/Scraptown | Found A0-MCA's Component Scanner 5041 | -7/Scraptown | Lrg. Botcube activated 5069 | -7/Scraptown | Lrg. Botcube completed mutation into treaded form, armed with 2 guns, 2 cannons. 5180 | -7/Scraptown | Met Optimus 5180 | -7/Scraptown | Accepted into 0bPrime 5263 | -7/Scraptown | Discovered new exit (range 5) 5283 | -7/Scraptown | Entered Factory 5283 | -5/Factory | Accompanied by 1 ally 5283 | -5/Factory | Evolved 10 slots: Power x1, Propulsion x3, Utility x6 5465 | -5/Factory | Allies destroyed Large Mutated Botcube 5473 | -5/Factory | Lrg. Botcube activated 5627 | -5/Factory | Loaded intel: 8 recycling unit locations 5743 | -5/Factory | Learned location of Protoforge (-2) 5937 | -5/Factory | Lost 4 parts (1p2n1u) 5949 | -5/Factory | Destroyed 7 combat bots 6010 | -5/Factory | Lost 3 parts (1n2u) 6161 | -5/Factory | Discovered new exit (range 5) 6315 | -5/Factory | Manually triggered Chute Trap 6315 | -5/Factory | Sucked down chute 6315 | -5/Factory | Entered Waste 6320 | -5/Waste | Spotted C-40 Crusher 6323 | -5/Waste | Spotted C-40 Crusher 6326 | -5/Waste | Spotted C-40 Crusher 6327 | -5/Waste | Spotted C-40 Crusher 6330 | -5/Waste | EMP discharged 6333 | -5/Waste | Spotted C-40 Crusher 6342 | -5/Waste | Discovered new exit (range 10) 6346 | -5/Waste | Entered Factory 6404 | -5/Factory | Build established: Scout 6420 | -5/Factory | Discovered new exit (range 20) 6426 | -5/Factory | System corruption reached 10% 6462 | -5/Factory | Discovered new exit (range 18) 6501 | -5/Factory | Identified exit to Upper Caves 6552 | -5/Factory | Loaded intel: 8 recycling unit locations 6743 | -5/Factory | Lost 3 parts (1n1u1w) 6794 | -5/Factory | Entered Upper Caves 6795 | -5/Upper Caves | Identified exit to Upper Caves 6878 | -5/Upper Caves | Found DCF Scrap (16 items) 6930 | -5/Upper Caves | Entered another Upper Caves area 6930 | -5/Upper Caves | Discovered new exit (range 9) 6973 | -5/Upper Caves | Core integrity fell below 50% 7011 | -5/Upper Caves | Learned Factory terminal intel 7016 | -5/Upper Caves | Encountered a Warlord checkpoint 7060 | -5/Upper Caves | Learned Factory stockpile data 7071 | -5/Upper Caves | Discovered new exit (range 9) 7090 | -5/Upper Caves | Attracted the attention of an 0b10 checkpoint 7092 | -5/Upper Caves | Entered Warlord 7105 | -5/Warlord | System corruption cleaned by Quarantine Array 7166 | -5/Warlord | Build established: Hacker-Mutant 7217 | -5/Warlord | Visited the Vortex Lab 7219 | -5/Warlord | Found Vortex Lance 7230 | -5/Warlord | Warlord's base attacked by MAIN.C 7244 | -5/Warlord | Rebuked by Warlord 7279 | -5/Warlord | Found Ghost Barrier 7329 | -5/Warlord | Discovered new exit (range 12) 7332 | -5/Warlord | Entered Proximity Caves 7335 | -4/Proximity Caves | Spotter reported a threat 7484 | -4/Proximity Caves | Found Alien Artifact 7484 | -4/Proximity Caves | Identified Dimensional Node Initializer 7484 | -4/Proximity Caves | Initialized slip node 7564 | -4/Proximity Caves | Build established: Hacker-Sprinter 7731 | -4/Proximity Caves | Discovered new exit (range 16) 7737 | -4/Proximity Caves | Entered Factory 7737 | -4/Factory | Evolved 2 slots: Propulsion x1, Utility x1 7739 | -4/Factory | Loaded intel: 27 terminal locations 7745 | -4/Factory | Identified exit to Upper Caves 7745 | -4/Factory | Identified exit to Extension 7745 | -4/Factory | Identified exit to Armory 7913 | -4/Factory | Loaded intel: 8 recycling unit locations 8114 | -4/Factory | Sucked down chute 8114 | -4/Factory | Entered Waste 8114 | -4/Waste | The area was eerily silent 8178 | -4/Waste | Discovered new exit (range 16) 8206 | -4/Waste | Entered Factory 8244 | -4/Factory | Loaded intel: 8 recycling unit locations 8410 | -4/Factory | Entered Upper Caves 8647 | -4/Upper Caves | Encountered a Warlord checkpoint 8656 | -4/Upper Caves | Learned location of Armory (-4) 8676 | -4/Upper Caves | Discovered new exit (range 10) 8678 | -4/Upper Caves | Identified exit to Upper Caves 8681 | -4/Upper Caves | Entered another Upper Caves area 8690 | -4/Upper Caves | Discovered new exit (range 10) 8693 | -4/Upper Caves | Identified exit to Research 8742 | -4/Upper Caves | Discovered new exit (range 8) 8743 | -4/Upper Caves | Identified exit to Zhirov 8745 | -4/Upper Caves | Learned Research emergency access door positions 8754 | -4/Upper Caves | Entered Zhirov 8754 | -4/Zhirov | Discovered new exit (range 3) 8755 | -4/Zhirov | Identified exit to Proximity Caves 8759 | -4/Zhirov | Met Zhirov 8765 | -4/Zhirov | Learned location of Quarantine (-2) 8765 | -4/Zhirov | Learned location of Testing (-3) 8765 | -4/Zhirov | Learned location of Command (-1) 8766 | -4/Zhirov | Zhirov requested help retrieving the SGEMP Prototype 8770 | -4/Zhirov | Found Alien Artifact 8770 | -4/Zhirov | Identified Integrated Dissipator 8770 | -4/Zhirov | Installed Integrated Dissipator, increased core heat dissipation (+20) 8778 | -4/Zhirov | Found Alien Artifact 8812 | -4/Zhirov | Entered Proximity Caves 8838 | -3/Proximity Caves | Spotted B-86 Titan 9112 | -3/Proximity Caves | Attracted the attention of an 0b10 checkpoint 9130 | -3/Proximity Caves | Discovered exit to Research (range 4) 9197 | -3/Proximity Caves | Entered Research 9197 | -3/Research | Evolved 2 slots: Propulsion x1, Utility x1 9198 | -3/Research | Identified exit to Testing 9221 | -3/Research | Spotted B-86 Titan 9270 | -3/Research | Spotted B-86 Titan 9324 | -3/Research | Loaded intel: 5 recycling unit locations 9548 | -3/Research | Found Quantum Capacitor 9591 | -3/Research | Entered Testing 9630 | -3/Testing | Found 2N-1CE's Frost Array 9639 | -3/Testing | Found Null Cannon 9683 | -3/Testing | Discovered new exit (range 16) 9699 | -3/Testing | Identified exit to Research 9699 | -3/Testing | Entered Research 9699 | -2/Research | Evolved 2 slots: Propulsion x1, Utility x1 9725 | -2/Research | Identified exit to Quarantine 9725 | -2/Research | Spotted B-90 Cyclops 9753 | -2/Research | Found Gamma Bomb Array 9816 | -2/Research | Loaded intel: 5 recycling unit locations 9839 | -2/Research | Build established: Hacker-Ninja 9904 | -2/Research | Entered Quarantine 9911 | -2/Quarantine | Found Alien Impact Weapon 9935 | -2/Quarantine | Lost 5 parts (1p2n1u1w) 9991 | -2/Quarantine | Discovered new exit (range 4) 9991 | -2/Quarantine | Identified exit to Access 10008 | -2/Quarantine | Found Alien Artifact 10091 | -2/Quarantine | Spotted Fortress 10104 | -2/Quarantine | Discovered new exit (range 6) 10104 | -2/Quarantine | Discovered new exit (range 7) 10105 | -2/Quarantine | Identified exit to Section 7 10106 | -2/Quarantine | Identified exit to Protoforge 10106 | -2/Quarantine | Entered Protoforge 10116 | -2/Protoforge | Spotted Hotshot 10120 | -2/Protoforge | Spotted Hotshot 10149 | -2/Protoforge | Spotted Hotshot 10226 | -2/Protoforge | Discovered exit to Access (range 15) 10227 | -2/Protoforge | Superfortress began startup sequence 10239 | -2/Protoforge | Spotted Hotshot 10284 | -2/Protoforge | Spotted Overlord 10285 | -2/Protoforge | Spotted AP7-3 10285 | -2/Protoforge | Spotted AP7-3 10302 | -2/Protoforge | Spotted EXE-6 10304 | -2/Protoforge | Spotted EXE-6 10312 | -2/Protoforge | UFD initiated attack on Protoforge 10312 | -2/Protoforge | Loaded intel: 3 recycling unit locations 10348 | -2/Protoforge | Optimus greeted in Protoforge 10361 | -2/Protoforge | Lost 6 parts (1p4n1u) 10377 | -2/Protoforge | Lost 5 allies 10380 | -2/Protoforge | Found Cep. XC Strikerail 10385 | -2/Protoforge | Found Exp. Kinecellerator 10391 | -2/Protoforge | Found Cep. XC Strikerail 10396 | -2/Protoforge | Found Exp. Core Analyzer 10425 | -2/Protoforge | Found Scrap Suit 10533 | -2/Protoforge | Lost 3 allies 10552 | -2/Protoforge | P-80 Master assimilated allied 02F07-K 10552 | -2/Protoforge | Spotted 02F07-K 10567 | -2/Protoforge | UFD reported confirmed Drillbomb installation 10595 | -2/Protoforge | P-80 Master assimilated allied 02F38-D 10596 | -2/Protoforge | Lost 8 allies 10621 | -2/Protoforge | Spotted Executioner 10624 | -2/Protoforge | Destroyed 02F07-K 10648 | -2/Protoforge | Spotted Striker 10650 | -2/Protoforge | Spotted Striker 10651 | -2/Protoforge | Lost 3 allies 10657 | -2/Protoforge | Destroyed Striker 10671 | -2/Protoforge | Build established: Scavenger-Scrapper 10699 | -2/Protoforge | Lost 4 allies 10753 | -2/Protoforge | Crushed by falling debris 10754 | -2/Protoforge | System corruption reached 10% 10761 | -2/Protoforge | Identified Terrabomb 10761 | -2/Protoforge | Used Terrabomb 10761 | -2/Protoforge | Additional patrols dispatched to research labs 10766 | -2/Protoforge | Spotted Hotshot 10773 | -2/Protoforge | Spotted Striker 10804 | -2/Protoforge | Destroyed Striker 10813 | -2/Protoforge | Spotted Executioner 10895 | -2/Protoforge | Lost 6 allies 10950 | -2/Protoforge | Spotted Striker 10953 | -2/Protoforge | Spotted Executioner 10993 | -2/Protoforge | Lost 4 allies 11099 | -2/Protoforge | Spotted Striker 11169 | -2/Protoforge | Spotted Striker 11175 | -2/Protoforge | Spotted Striker 11202 | -2/Protoforge | Lost 7 allies 11235 | -2/Protoforge | UFD reported confirmed Drillbomb installation 11293 | -2/Protoforge | Found 0bPrime Scrap Suit 11303 | -2/Protoforge | Spotted Executioner 11306 | -2/Protoforge | Spotted Striker 11307 | -2/Protoforge | Spotted Striker 11326 | -2/Protoforge | Destroyed Striker 11333 | -2/Protoforge | Destroyed Striker 11343 | -2/Protoforge | Spotted Hotshot 11349 | -2/Protoforge | Lost 5 allies 11381 | -2/Protoforge | Spotted Executioner 11383 | -2/Protoforge | Destroyed Executioner 11403 | -2/Protoforge | Destroyed Executioner 11411 | -2/Protoforge | Lost 5 allies 11431 | -2/Protoforge | Spotted Hotshot 11437 | -2/Protoforge | Spotted Hotshot 11451 | -2/Protoforge | Destroyed Hotshot 11458 | -2/Protoforge | Spotted Striker 11458 | -2/Protoforge | Destroyed Striker 11458 | -2/Protoforge | Spotted Striker 11477 | -2/Protoforge | Destroyed Striker 11482 | -2/Protoforge | Spotted Striker 11485 | -2/Protoforge | Spotted Executioner 11498 | -2/Protoforge | Destroyed 7 combat bots 11525 | -2/Protoforge | Found Prototype Device 11525 | -2/Protoforge | Identified Adv. Kinecellerator 11558 | -2/Protoforge | Lost 13 allies 11575 | -2/Protoforge | Spotted Executioner 11580 | -2/Protoforge | Spotted Executioner 11604 | -2/Protoforge | Spotted Executioner 11606 | -2/Protoforge | Core integrity fell below 50% 11614 | -2/Protoforge | Spotted Hotshot 11617 | -2/Protoforge | Spotted Hotshot 11617 | -2/Protoforge | Destroyed Hotshot 11620 | -2/Protoforge | Destroyed Hotshot 11630 | -2/Protoforge | Spotted Striker 11630 | -2/Protoforge | Spotted Executioner 11631 | -2/Protoforge | Lost 6 allies 11681 | -2/Protoforge | Spotted Striker 11682 | -2/Protoforge | Spotted Striker 11701 | -2/Protoforge | Destroyed Striker 11706 | -2/Protoforge | P-80 Master assimilated allied 02FAZ-D 11713 | -2/Protoforge | Spotted Executioner 11725 | -2/Protoforge | Spotted Executioner 11729 | -2/Protoforge | Lost 3 parts (1p1n1u) 11791 | -2/Protoforge | Lost 15 allies 11792 | -2/Protoforge | Lost 3 parts (1n1u1w) 11829 | -2/Protoforge | Spotted Executioner 11844 | -2/Protoforge | Spotted Executioner 11878 | -2/Protoforge | Spotted Executioner 11915 | -2/Protoforge | Spotted Striker 11915 | -2/Protoforge | Spotted Striker 11918 | -2/Protoforge | Lost 18 allies 11933 | -2/Protoforge | Found Prototype Processor 11933 | -2/Protoforge | Identified Exp. Core Analyzer 11936 | -2/Protoforge | Found Adv. Kinecellerator 11962 | -2/Protoforge | Spotted Executioner 11964 | -2/Protoforge | Spotted Striker 11974 | -2/Protoforge | Spotted Striker 11975 | -2/Protoforge | Spotted Striker 11976 | -2/Protoforge | Spotted Striker 11978 | -2/Protoforge | Spotted Striker 11988 | -2/Protoforge | UFD reported confirmed Drillbomb installation 12009 | -2/Protoforge | Spotted Striker 12011 | -2/Protoforge | Spotted Executioner 12030 | -2/Protoforge | Found UFD Drillbomb 12050 | -2/Protoforge | Lost 7 allies 12056 | -2/Protoforge | Spotted Striker 12057 | -2/Protoforge | Spotted Executioner 12103 | -2/Protoforge | Destroyed Striker 12106 | -2/Protoforge | Installed UFD Drillbomb at designated target 12106 | -2/Protoforge | UFD reported confirmed Drillbomb installation 12125 | -2/Protoforge | Found UFD Drillbomb 12128 | -2/Protoforge | Found 0bPrime Scrap Suit 12138 | -2/Protoforge | Lost 5 allies 12179 | -2/Protoforge | Installed UFD Drillbomb at designated target 12179 | -2/Protoforge | UFD reported confirmed Drillbomb installation 12250 | -2/Protoforge | Spotted Executioner 12271 | -2/Protoforge | Found Adv. Kinecellerator 12279 | -2/Protoforge | Found UFD Drillbomb 12318 | -2/Protoforge | Spotted Executioner 12318 | -2/Protoforge | UFD reported confirmed Drillbomb installation 12321 | -2/Protoforge | Destroyed Executioner 12321 | -2/Protoforge | Spotted Executioner 12401 | -2/Protoforge | Destroyed Executioner 12411 | -2/Protoforge | Lost 4 allies 12442 | -2/Protoforge | Spotted Executioner 12449 | -2/Protoforge | Spotted Executioner 12497 | -2/Protoforge | Spotted Striker 12499 | -2/Protoforge | Spotted Executioner 12510 | -2/Protoforge | Crushed by falling debris 12520 | -2/Protoforge | Found Exp. Core Analyzer 12530 | -2/Protoforge | Spotted Executioner 12530 | -2/Protoforge | Spotted Striker 12541 | -2/Protoforge | Lost 3 parts (1n2u) 12574 | -2/Protoforge | Found Adv. Kinecellerator 12577 | -2/Protoforge | Found Exp. Targeting Computer 12594 | -2/Protoforge | Lost 15 allies 12650 | -2/Protoforge | P-80 Master assimilated allied E3-0NM(j) 12688 | -2/Protoforge | Lost 5 allies 12725 | -2/Protoforge | Spotted Decapitator 12726 | -2/Protoforge | Spotted Decapitator 12740 | -2/Protoforge | Spotted Striker 12742 | -2/Protoforge | Installed UFD Drillbomb at designated target 12742 | -2/Protoforge | UFD reported confirmed Drillbomb installation 12760 | -2/Protoforge | Installed UFD Drillbomb at designated target 12760 | -2/Protoforge | UFD reported confirmed Drillbomb installation 12766 | -2/Protoforge | Lost 5 allies 12777 | -2/Protoforge | Spotted Immortal 12777 | -2/Protoforge | Spotted Striker 12803 | -2/Protoforge | Found UFD Drillbomb 12850 | -2/Protoforge | Spotted Executioner 12850 | -2/Protoforge | Spotted Striker 12950 | -2/Protoforge | Installed UFD Drillbomb at designated target 12950 | -2/Protoforge | UFD reported confirmed Drillbomb installation 13024 | -2/Protoforge | Spotted Executioner 13030 | -2/Protoforge | Destroyed Executioner 13040 | -2/Protoforge | Core integrity fell below 20% 13089 | -2/Protoforge | Lost 10 allies 13096 | -2/Protoforge | Spotted Striker 13107 | -2/Protoforge | Destroyed Striker 13109 | -2/Protoforge | Spotted Striker 13111 | -2/Protoforge | Spotted Striker 13176 | -2/Protoforge | Spotted Striker 13188 | -2/Protoforge | Spotted Striker 13192 | -2/Protoforge | Spotted Striker 13194 | -2/Protoforge | Spotted Striker 13230 | -2/Protoforge | Spotted Executioner 13269 | -2/Protoforge | Spotted Executioner 13278 | -2/Protoforge | Destroyed Executioner 13281 | -2/Protoforge | Spotted Striker 13283 | -2/Protoforge | Spotted Striker 13323 | -2/Protoforge | Spotted Executioner 13326 | -2/Protoforge | Destroyed Executioner 13348 | -2/Protoforge | Spotted Executioner 13378 | -2/Protoforge | Lost 39 allies 13429 | -2/Protoforge | Spotted Executioner 13444 | -2/Protoforge | Spotted Striker 13453 | -2/Protoforge | Spotted Executioner 13454 | -2/Protoforge | Spotted Executioner 13478 | -2/Protoforge | Spotted Striker 13495 | -2/Protoforge | Spotted Executioner 13498 | -2/Protoforge | Spotted Executioner 13536 | -2/Protoforge | Spotted Striker 13566 | -2/Protoforge | Spotted Executioner 13566 | -2/Protoforge | Spotted Striker 13567 | -2/Protoforge | Spotted Executioner 13577 | -2/Protoforge | Spotted Striker 13603 | -2/Protoforge | Lost 17 allies 13615 | -2/Protoforge | Spotted Striker 13620 | -2/Protoforge | Spotted Striker 14832 | -2/Protoforge | Lost 4 allies 17643 | -2/Protoforge | Spotted Executioner 17672 | -2/Protoforge | Destroyed Executioner 17681 | -2/Protoforge | Lost 6 allies 17714 | -2/Protoforge | Spotted Striker 17715 | -2/Protoforge | Spotted Striker 17756 | -2/Protoforge | Spotted Striker 17773 | -2/Protoforge | Destroyed by Striker with Compact Linear Accelerator Last Messages --------------- Reactor. 17745_ 02FZX-D suffers critical hit (Burn). 17745_ Slug penetrates G-73 Enforcer. 17745_ G-73 Enforcer suffers critical hit (Destroy). 17745_ CPS modules swiftly deploy to protect G-73 Enforcer components. 17745_ G-73 Enforcer destroyed. 17745_ Slug penetrates P-80 Master. 17746_ P-80 Master Gamma Rifle blasted off. 17746_ P-80 Master destroyed. 17748_ 02FZX-D reactivates. 17750_ 02FZX-D cannibalizes Adv. Cooling System to repair Mak. Coolant Network. 17752_ Acquired Lgt. Quantum Reactor. 17755_ System corrupted: Substantial component data lost. 17760_ Lgt. Humpback destroyed. 17771_ Slug penetrates Earth. 17772_ 9MW#,YK31PPYOBJK8A1H6=HRI3Q4RTEXVLLR K Map ----- +----------------------------------------------------+ | ###????#"|*%% %%% %%%% %%%%%%%%%%%%%%% !![ %%=% % | | ########" ! %%% %%%%%%%%%%%%%%%%%%"%% %=!% %%% | | #########%% % % %%%% %%%%%%%%%% %%%"%% ""!=*%" ! | | #? ?? ??#! %%"% """% % %%% % %"% "%% ![[[| | | #??""? ?"!% %"""" %% %"" "% %" %%% !!! | | #?"??" #[=%%! %"!=! # = %% % " | | #??""" # =*[" % "! "%%;""% %" " | | # "??? ?"= = %%% %; " % % # | | # ???? +==% %" %% # % % "% ### | | # ""????#%% % ;= " ! %% %% """""#### | | # """?? # "%" ;%% " = "#" " "#""## ##?? | | # """???# % " " ;! # !!%%"" ## ##?? | | # """???# %" """ ; "# [*!%%"# ## #??? | | # ???#=! " "" ; "## =%* " ## #### | | ##""+####% # " # ### =%= "" ####### | | ## # ; ## #%/]*"" " " + +=% | | ## ?" ? =%* "## ; =="# "S"" ##### | | ## ?? # #= ### % ## " "" ### " | | ## ?????####"##; ####;% ## ##### | | ## " ##############; ### "" ;#######"#"###"" | | ## "%"########## ###;!% ### "% ###### """ # | | #" #### ;;###;;##;%!!;# #;K ###?## " " | | % ! % #; ; #### # | | ! % %;! %; %;; ; % | | %% % ! ;;;;% ;;;#;###"""###### | | % = %= @ % %% % % | | ! ;;;!=;;; % % % % % | | %! " # # ; % %! % % ! | | %[ !] """ ### ;#;;;#%;;#;= = ;;;;;;;;##;;;;##" | | [% = """" ##### % ;##;;;#### # " | | """" ##?## % ; # ## # | | ""T"" ##?## # # #### | | """" ##?## # # """"" #### | | #####+#########?#" # # """""" #### | | #????????#######" # # """""" #### | | ## ???????#######; ; # """""" #### | | ##???? ?????? ?#;=% # # #### | | ##??? ????##### ## | # ############## | | ## ???????##### ##;;##;#### ############### | | ##????????##?## ;##;######"#######??????????### | | ##?"??????##?## ### "#####"#######????????????? | | ##? ??????##?## ###T"#### ##????????????????? | | ##??? ????##?## ##????????????????? | | ###?##########"! ## ##????????????????? | | ### ###########% ### ###????????????????? | | ### ###????????????????? | | ### ##?????????????????? | | ### ##?????????????????? | | ### #####??????????????? | | #+######"###"###"#####+######+#####??????????????? | +----------------------------------------------------+ Best States ------------- Heat Dissipation 169 Energy Generation 49 Energy Capacity 515 Matter Stores 300 Matter Capacity 500 Sight Range 23 Robot Scan Range 16 Terrain Scan Range 24 Terrain Scan Density 210 ECM Strength 1 Jamming Range 16 Additional Mass Support 9 Corruption Containment 8 Armor Coverage 825 Resistance: KI 20 Resistance: TH 20 Core Shielding 10 Evasion (%) 66 Targeting Accuracy 12 Melee Accuracy 5 Target Analysis 9 Core Analysis 8 Recoil Reduction 5 Kinecelleration 66 Offensive Hacking 38 Defensive Hacking 34 Item Schematics ----------------- Assault Drone Bay | -4/Zhirov | Free Exp. Heat Sink | -4/Zhirov | Free Exp. Optical Array | -4/Zhirov | Free Imp. Arc Thrower | -4/Zhirov | Free Robot Schematics ------------------ None Fabricated ------------ Nothing Repaired ---------- Nothing Alien Tech Used ----------------- Dimensional Node Initializer Integrated Dissipator Terrabomb Achievements -------------- Speed Demon Challenges ------------ None Game ------ Seed ThiefAssembledProtomatter Manual? 0 Play Time 04:27:58 Cumulative 181.1 hours Start 2025.08.12 @ 18:32:43 End 2025.08.16 @ 09:32:29 Sessions 3 Manual Loads 0 Difficulty Rogue Special Mode None Game No. 149 Rogue 149 Adventurer 0 Explorer 0 Win Type - Total 5 Types 3/0/1/1/0/0/0/0/0/0 Lore% 76 Gallery% 71 Achievement% 64 Wizard Run 0 Options --------- Layout 1 ASCII 0 Keyboard 0 Movement Numpad Keybinds 0 Fullscreen 1 Font 24/Smallcaps Map View 50x35 Zoom Use 0% Tactical HUD 1 Map Filters NONE Filters NONE Steam 1 RUN: 3402c1db-cf47-4de7-b11e-d78b480e75ad